Cogmind - Beta 11.1 @@@ ROGUE MODE // 2022.04.29 @ 13:43:51 Player: Olga Result: Destroyed by as-17193 with Assembled Rifle Performance ------------- Evolutions (0) 0 Regions Visited (2) 400 Robots Destroyed (10) 50 Value Destroyed (286) 286 Prototype IDs (0) 0 Alien Tech Used (0) 0 Bonus (0) 0 TOTAL SCORE: 736 Bonus ------- None Cogmind --------- Core Integrity 0/250 Matter 182/300 Energy 100/100 System Corruption 0% Temperature Cool (0) Movement Rolling (175) Ox5 Location -10/Mines Parts ------- > --- POWER (1) -------- (None) > --- PROPULSION (2) --- Aluminum Leg Compact Wheel > --- UTILITY (2) ------ Huge Storage Unit Medium Armor Plating > --- WEAPON (2) ------- Assault Rifle Rocket Launcher > --- INVENTORY (25) --- Ion Engine Light Ion Engine Aluminum Leg Aluminum Leg Aluminum Leg Aluminum Leg Medium Storage Unit Large Storage Unit Signal Interpreter Medium Armor Plating Medium Armor Plating Medium Armor Plating Assault Rifle Rocket Launcher Rocket Launcher Peak State ------------ > --- POWER ------------ Ion Engine > --- PROPULSION ------- Aluminum Leg Compact Wheel > --- UTILITY ---------- Huge Storage Unit Medium Armor Plating > --- WEAPON ----------- Assault Rifle Rocket Launcher > --- INVENTORY -------- Ion Engine Light Ion Engine Aluminum Leg Aluminum Leg Aluminum Leg Aluminum Leg Medium Storage Unit Large Storage Unit Signal Interpreter Medium Armor Plating Medium Armor Plating Medium Armor Plating Assault Rifle Rocket Launcher Rocket Launcher Rocket Launcher [Rating: 11] Favorites ----------- Power Ion Engine Engine Ion Engine Propulsion Aluminum Leg Leg Aluminum Leg Wheel Compact Wheel Utility Large Storage Unit Storage Large Storage Unit Protection Medium Armor Plating Weapon Assault Rifle Energy Gun Medium Laser Ballistic Gun Assault Rifle Launcher Rocket Launcher Build | -11 -10 -10 ------- Run | Scr Mat Min Slots Evolved . | . . . Power . | . . . Propulsion . | . . . Utility . | . . . Weapon . | . . . Parts Attached 16 | . 13 3 Power 1 | . 1 . Engine 1 | . 1 . Core . | . . . Reactor . | . . . Propulsion 7 | . 7 . Treads . | . . . Leg 4 | . 4 . Wheel 3 | . 3 . Hover . | . . . Flight . | . . . Utility 4 | . 3 1 Device . | . . . Storage 2 | . 1 1 Processor . | . . . Hackware . | . . . Protection 2 | . 2 . Artifact . | . . . Weapon 4 | . 2 2 Energy Gun . | . . . Energy Cannon . | . . . Ballistic Gun 2 | . 2 . Ballistic Cannon . | . . . Launcher 2 | . . 2 Special Weapon . | . . . Impact Weapon . | . . . Slashing Weapon . | . . . Piercing Weapon . | . . . Special Melee Weapon . | . . . Unidentified Prototypes . | . . . Parts Lost 7 | . 5 2 Power 2 | . 1 1 Propulsion 1 | . 1 . Utility 1 | . 1 . Weapon 3 | . 2 1 Highest Loss Streak 3 | . 3 2 To Critical Strikes . | . . . Average Slot Usage (%) 94 | . 92 99 Engine 12 | . 12 13 Leg 11 | . 10 14 Wheel 15 | . 16 14 Storage 16 | . 17 14 Protection 8 | . 6 14 Energy Gun 6 | . 8 . Ballistic Gun 20 | . 18 26 Naked Turns . | . . . Heaviest Build 96 | 14 36 96 Greatest Support 26 | 20 26 16 Greatest Overweight (x) 5 | . 2 5 Average Overweight (x) 1 | . 1 4 Largest Inventory Capacity 25 | . 15 25 Average Capacity 17 | . 14 24 Most Carried 16 | . 15 16 Average Carried 11 | . 9 15 Final Capacity 25 | 8 15 25 Final Carried 15 | 6 15 15 Class Distribution -------------------- 100% | Mutant Dominant Class ---------------- Mutant | -10/Materials Mutant | -10/Mines Resources | -11 -10 -10 ----------- Run | Scr Mat Min Matter Collected 436 | 149 246 41 Remotely . | . . . Salvage Created 344 | . 295 49 Parts 25 | . 25 . Haulers Intercepted . | . . . Recyclers Shooed 1 | . 1 . Parts Field Recycled . | . . . Retrieved Matter . | . . . Parts Self-Destructed . | . . . Prevented . | . . . Kills | -11 -10 -10 ------- Run | Scr Mat Min Combat Hostiles Destroyed 21 | . 9 12 Guns 9 | . 9 . AOE 12 | . . 12 Classes Destroyed 4 | . 3 1 Watcher 1 | . 1 . Swarmer 3 | . 3 . Grunt 6 | . 6 . Assembled 12 | . . 12 Best Kill Streak 12 | . 5 12 Combat Bots Only 12 | . 5 12 Max Kills in Single Turn 4 | . 1 4 Gunslinging . | . . . Exploded 4 | . . 4 Melee . | . . . Uniques/NPCs Destroyed . | . . . Combat | -11 -10 -10 -------- Run | Scr Mat Min Damage Taken 1227 | . 782 445 Core 250 | . 175 75 Absorbed by Shields . | . . . Redirected to Shielding 52 | . 52 . Core Remaining (%) 100 | 100 . . Volleys Fired 50 | . 45 5 Largest 2 | . 2 2 Hottest 70 | . 70 53 Shots Fired 86 | . 76 10 Gun 81 | . 76 5 Cannon . | . . . Launcher 5 | . . 5 Special . | . . . Kinetic 58 | . 53 5 Thermal 23 | . 23 . Explosive 5 | . . 5 Electromagnetic . | . . . Robot Hit Streak 9 | . 9 5 Robot Miss Streak 3 | . 3 1 Penetration Max . | . . . Secondary Targets 2 | . 2 . Max Gunslinging Chain 1 | . 1 . Shots Hit Robots 56 | . 49 7 Core Hits 37 | . 19 18 Critical Kills . | . . . Critical Parts Destroyed . | . . . Critical Strikes 3 | . 3 . Burn 3 | . 3 . Melee Attacks . | . . . Impact . | . . . Slashing . | . . . Piercing . | . . . Sneak Attacks . | . . . Combat Hostiles . | . . . Follow-up Attacks . | . . . Damage Inflicted 1469 | . 613 856 Guns 635 | . 613 22 Cannons . | . . . Explosions 834 | . . 834 Melee . | . . . Ramming . | . . . Kinetic 484 | . 462 22 Thermal 151 | . 151 . Explosive 834 | . . 834 Electromagnetic . | . . . Impact . | . . . Slashing . | . . . Piercing . | . . . Highest Corruption . | . . . Average Corruption . | . . . Corruption Purged . | . . . Corruption Blocked . | . . . Overload Shots . | . . . Overflow Damage . | . . . Projectiles . | . . . Explosions . | . . . Melee . | . . . Knockbacks . | . . . Impact . | . . . Kinetic . | . . . Secondary . | . . . Self-Inflicted Damage 75 | . . 75 Shots 2 | . . 2 Rammed . | . . . Targets Rammed . | . . . Kicked . | . . . Crushed . | . . . Highest Temperature 318 | . 318 . Average Temperature 138 | . 138 . Received Heat Transfer 375 | . 375 . Effects 1 | . 1 . Energy Bleed 1 | . 1 . Siege Activations . | . . . Robots Corrupted . | . . . Combat Hostiles . | . . . Parts Fried . | . . . Impact Corruptions . | . . . Robots Melted . | . . . Combat Hostiles . | . . . Parts Melted 3 | . 3 . Heat Transferred 666 | . 666 . Parts Sabotaged . | . . . Parts Stolen . | . . . Parts Stripped . | . . . Power Chain Reactions . | . . . Missiles Intercepted . | . . . Alert | -11 -10 -10 ------- Run | Scr Mat Min Peak Influence 238 | . 238 120 Initial 26 | . . 26 Average 74 | . 89 31 Maximum Alert Level 1 | . 1 . Low Security (%) 82 | . 77 100 Level 1 17 | . 22 . Level 2 . | . . . Level 3 . | . . . Level 4 . | . . . Level 5 . | . . . High Security . | . . . Max Security . | . . . Squads Dispatched 1 | . 1 . Investigation 1 | . 1 . Extermination . | . . . Reinforcement . | . . . Assault . | . . . Garrison . | . . . Intercept . | . . . Searches Triggered . | . . . Construction Impeded . | . . . Haulers Reinforced . | . . . Active Scanning Responses . | . . . Cargo Convoy Interrupts . | . . . Stealth | -11 -10 -10 --------- Run | Scr Mat Min Distress Signals . | . . . Communications Jammed . | . . . Distress Signals . | . . . Times Spotted 31 | . 16 15 Peak Tracking Total 10 | . 8 10 Tactical Retreats 1 | . 1 . Traps | -11 -10 -10 ------- Run | Scr Mat Min Traps Triggered 2 | . 2 . Indirectly . | . . . Trap Hack Attempts . | . . . Triggered . | . . . Disarmed . | . . . Reprogrammed . | . . . Reused . | . . . Traps Extracted . | . . . Installed . | . . . Triggered . | . . . Machines | -11 -10 -10 ---------- Run | Scr Mat Min Machines Disabled 1 | . 1 . Max in Single Turn 1 | . 1 . Machines Sabotaged . | . . . Garrisons Compromised . | . . . Overloaded Fab Kills . | . . . Hacking | -11 -10 -10 --------- Run | Scr Mat Min Machines Accessed 5 | . 5 . Terminals 4 | . 4 . Fabricators . | . . . Repair Stations . | . . . Recycling Units 1 | . 1 . Scanalyzers . | . . . Garrison Access . | . . . Total Hacks 8 | . 8 . Successful 5 | . 5 . Failed 3 | . 3 . Catastrophic 1 | . 1 . Database Lockouts . | . . . Manual 7 | . 7 . Terminals 5 | . 5 . Fabricators . | . . . Repair Stations . | . . . Recycling Units 3 | . 3 . Scanalyzers . | . . . Garrison Access . | . . . Terminal Hacks 3 | . 3 . Branch Access Points 1 | . 1 . Zone Layout 2 | . 2 . Fabricator Hacks . | . . . Repair Station Hacks . | . . . Recycling Unit Hacks 1 | . 1 . Report Inventory 1 | . 1 . Scanalyzer . | . . . Garrison Access Hacks . | . . . Unauthorized Hacks 1 | . 1 . Terminals . | . . . Fabricators . | . . . Repair Stations . | . . . Recycling Units 1 | . 1 . Reject 1 | . 1 . Scanalyzers . | . . . Garrison Access . | . . . Data Cores Recovered . | . . . Used . | . . . Hacking Detections 3 | . 3 . Full Trace Events . | . . . Feedback Events . | . . . Feedback Blocked . | . . . Robot Schematics Acquired . | . . . Robots Built . | . . . Authchips . | . . . Time . | . . . Total Robot Build Rating . | . . . Part Schematics Acquired . | . . . Parts Built . | . . . Authchips . | . . . Time . | . . . Total Part Build Rating . | . . . Parts Repaired . | . . . Time . | . . . Parts Recycled . | . . . Recycled Matter . | . . . Retrieved Matter . | . . . Retrieved Components . | . . . Parts Scanalyzed . | . . . Part Schematics Acquired . | . . . Parts Damaged . | . . . Bothacking | -11 -10 -10 ------------ Run | Scr Mat Min Used RIF Installer . | . . . Robots Hacked . | . . . Non-combat . | . . . Combat . | . . . Robot Hacks Applied . | . . . Relay Couplers Released . | . . . Fabnet Peak Effective % . | . . . Robots Rewired . | . . . Allies Hacked . | . . . Hacks Repelled . | . . . Allies | -11 -10 -10 -------- Run | Scr Mat Min Total Allies . | . . . Largest Group . | . . . Highest-Rated Group . | . . . Highest-Rated Ally . | . . . Total Orders . | . . . Ally Attacks . | . . . Total Damage . | . . . Kills . | . . . Allies Corrupted . | . . . Allies Melted . | . . . Intel | -11 -10 -10 ------- Run | Scr Mat Min Robot Analysis Total . | . . . Derelict Logs Recovered . | . . . Drone Launches . | . . . Drone Recoveries . | . . . Exploration | -11 -10 -10 ------------- Run | Scr Mat Min Turns Passed 662 | . 493 169 Spaces Moved 364 | 1 276 87 Core . | . . . Treads . | . . . Legs 63 | 1 62 . Wheels 301 | . 214 87 Hover . | . . . Flight . | . . . Fastest Speed 105 | 120 105 130 Average Speed 132 | 120 120 171 Slowest Speed 190 | 120 190 175 Overloaded Moves . | . . . Propulsion Burnouts . | . . . Robots Hopped . | . . . Cave-ins Triggered . | . . . Exploration Rate (%) 27 | 2 56 23 Regions Visited 2 Branch Regions 1 Pre-discovered Areas . | . . . Known Exits Taken 1 | . 1 . Unknown Exits Taken 1 | 1 . . Scrap Searched 1 | . . 1 Spaces Dug . | . . . Terrain Destroyed 46 | . . 46 Melee . | . . . Projectile . | . . . AOE 46 | . . 46 Terrain Rammed . | . . . Walls Destroyed . | . . . Machines Disabled . | . . . Actions | -11 -10 -10 --------- Run | Scr Mat Min Total 456 | . 359 97 Wait 7 | . 7 . Move 362 | . 275 87 Hop . | . . . Pick Up 15 | . 14 1 Fast Attach 4 | . 4 . Attach 4 | . 3 1 Detach . | . . . Swap 8 | . 6 2 Drop 6 | . 5 1 Fire 50 | . 45 5 Melee . | . . . Ram . | . . . Kick . | . . . Crush . | . . . Escape Stasis . | . . . Rewire . | . . . Trap . | . . . Miscellaneous . | . . . Route ------- -11/Scrapyard -10/Materials (discovered 3 exits: [*Mat] / *Min x2) -10/Mines History --------- Turn | Location | Event 1 | -11/Scrapyard | Discovered new exit (range 0) 1 | -11/Scrapyard | Entered Materials 83 | -10/Materials | Discovered new exit (range 8) 207 | -10/Materials | Identified exit to Mines 300 | -10/Materials | Build established: Mutant 324 | -10/Materials | Core integrity fell below 50% 350 | -10/Materials | Lost 3 parts (1n1u1w) 494 | -10/Materials | Entered Mines 631 | -10/Mines | Assembled infested the area 655 | -10/Mines | Core integrity fell below 20% 663 | -10/Mines | Destroyed by as-17193 with Assembled Rifle Last Messages --------------- 00560_ K-01 Serf cleans the Pressure Siphon. 00576_ K-01 Serf collects debris. 00631_ ALERT: Infestation in the mines, dispatching Demolisher response squad. 00648_ as-64003 destroyed. 00648_ as-61499 destroyed. 00651_ as-54956 destroyed. 00652_ Rocket Launcher destroyed. 00653_ Ion Engine destroyed. 00654_ as-95625 destroyed. 00655_ as-65807 destroyed. 00655_ as-29411 destroyed. 00655_ as-96908 destroyed. 00655_ as-47146 destroyed. 00658_ as-94204 destroyed. 00658_ as-26556 destroyed. 00658_ Destroyed Asb. F-torch. 00660_ The unstable cave ceiling collapses. 00661_ as-43252 destroyed. 00661_ as-79146 destroyed. Map ----- +----------------------------------------------------+ | | | | | | | | | | | | | ?????????????????????????????????????????????? | | ?????????????????????????????????????????????? | | ?????????????????????????????????????????????? | | ?????????????????????????????????????????????? | | ?????????????????????????????????????????????? | | ?????????????????????????????????????????????? | | ?????????????????????????????????????????????? | | ?????????????????????????????????????????????? | | ?????????????????????????????????????????????? | | ?????????????????????????????????????????????? | | ?????????????????????????????????????????????? | | ?????????????????????????????????????????????? | | ?????????????????????????????????????????????? | | ???????????????????????????????????###???????? | | ???????????????????????????????#? #???????? | | ????????????????????????????## # % ##??????? | | ?????????????????????####### % ##?????? | | ????????????????????## # #?????? | | ????????????????????# #?????? | | ????????????????????# @ a #???????? | | ????????????????????# a%% #????????? | | ????????????????????## #????????? | | ?????????????????????### ###????????? | | ???????????????????????## ###??????????? | | ????????????????????????## #####????????????? | | ?????????????????????????# #????????????????? | | ?????????????????????????# #######??????????? | | ?????????????????????????# #??????????? | | ?????????????????????????# #??????????? | | ?????????????????????????## #### #??#####???? | | ??????????????????????????# #??# #??# ##??? | | ??????????????????????????# #??# #??# ##?? | | ??????????????????????????# #??# #???# ##? | | ?????????????#########????# #??# #???# #? | | ?????????????# #???## #### #??## #? | | ?????????????# #??## #??# #? | | ?????????????# #??# """ #### ##? | | ?????????????# #### """ ## ##?? | | ?????????????# # """ ##?? | | ?????????????###### ## ## """ #?? | | ??????????????????# ## ##? | | ??????????????????# ###### #? | | ??????????????????# #????## #? | | ??????????????????# #?????# ### ##? | +----------------------------------------------------+ Best States ------------- Heat Dissipation 25 Energy Generation 10 Energy Capacity 250 Matter Stores 270 Matter Capacity 300 Sight Range 16 Terrain Scan Density 10 Armor Coverage 225 Weapon Shielding 33 Evasion (%) 55 Item Schematics ----------------- None Robot Schematics ------------------ None Fabricated ------------ Nothing Alien Tech Used ----------------- None Achievements -------------- None Challenges ------------ None Game ------ Seed TrapHelicalDrive Manual? 0 Play Time 00:08:00 Cumulative 114.2 hours Start 2022.04.29 @ 13:36:58 End 2022.04.29 @ 13:43:51 Sessions 1 Manual Loads 0 Difficulty Rogue Special Mode None Game No. 139 Rogue 138 Adventurer 0 Explorer 1 Win Type - Total 2 Types 2/0/0/0/0/0/0/0/0 Lore% 57 Gallery% 56 Achievement% 46 Wizard Run 0 Options --------- ASCII 1 Keyboard 0 Movement Vi Keybinds 0 Fullscreen 1 Font 18/SmallcapsGlow Map View 76x50 Tactical HUD 1 Map Filters NONE Filters NONE Steam 1 RUN: d017327a-d12c-41f4-94e7-ea25d3cbd041